bitfinex/quotes_BTCUSD_20251102
["timestamp","ask_amount","ask_price","bid_price","bid_amount"]
[1762050004339,0.61198111,110100.0,110090.0,0.03938945]
[1762050004515,1.04101446,110100.0,110090.0,0.0333395]
[1762050004898,1.04101446,110100.0,110090.0,0.0263395]
[1762050005106,1.06332446,110100.0,110090.0,0.0263395]
[1762050005283,1.06332446,110100.0,110090.0,0.0313395]
[1762050006537,1.06332446,110100.0,110090.0,0.0333395]
[1762050007194,1.06332446,110100.0,110090.0,0.0174695]
[1762050007797,1.06332446,110100.0,110090.0,0.0084295]
[1762050009510,1.04001446,110100.0,110090.0,0.0242995]
[1762050009715,1.04001446,110100.0,110090.0,0.0333395]
[1762050010236,0.61068639,110100.0,110090.0,0.0572195]
[1762050010680,1.01857746,110100.0,110090.0,0.0333395]
[1762050012002,0.61068639,110100.0,110090.0,0.0572195]
[1762050014819,0.61068639,110100.0,110090.0,0.23888904]
[1762050015973,0.42903335,110100.0,110090.0,0.23888904]
[1762050016184,0.42903335,110100.0,110090.0,0.29308576]
[1762050016583,0.42903335,110100.0,110090.0,0.32039163]
[1762050016824,0.42903335,110100.0,110090.0,0.26619491]
[1762050017042,0.61068639,110100.0,110090.0,0.26619491]
[1762050018635,0.42903335,110100.0,110090.0,0.26619491]
[1762050018845,0.61068639,110100.0,110090.0,0.26619491]
[1762050019263,0.42903335,110100.0,110090.0,0.26619491]
[1762050019476,0.21783532,110100.0,110090.0,0.26619491]
[1762050019681,1.0036543,110100.0,110090.0,0.26619491]
[1762050022536,0.82200126,110100.0,110090.0,0.26619491]
[1762050023370,1.0036543,110100.0,110090.0,0.26619491]
[1762050023559,0.82200126,110100.0,110090.0,0.26619491]
[1762050023982,1.0036543,110100.0,110090.0,0.26619491]
[1762050025083,0.82200126,110100.0,110090.0,0.26619491]
[1762050026378,0.78581898,110100.0,110090.0,0.32039155]
[1762050026536,0.78581898,110100.0,110090.0,0.26619491]
[1762050029859,0.39290949,110100.0,110090.0,0.26619491]
[1762050031515,0.39290949,110100.0,110090.0,0.26119491]
[1762050032109,0.39290949,110100.0,110090.0,0.26419491]
[1762050033911,0.57456253,110100.0,110090.0,0.26419491]
[1762050034342,0.39290949,110100.0,110090.0,0.26419491]
[1762050035006,0.78581898,110100.0,110090.0,0.26419491]
[1762050035158,0.39290949,110100.0,110090.0,0.26419491]
[1762050035782,0.39290949,110100.0,110090.0,0.30258473]
[1762050041810,0.57456253,110100.0,110090.0,0.30258473]
[1762050042026,0.39290949,110100.0,110090.0,0.26419491]
[1762050043054,0.78581898,110100.0,110090.0,0.26419491]
[1762050044318,0.96747202,110100.0,110090.0,0.26419491]
[1762050044523,0.78581898,110100.0,110090.0,0.26419491]
[1762050045543,0.39290949,110100.0,110090.0,0.26419491]
[1762050049096,0.78581898,110100.0,110090.0,0.26419491]
[1762050051749,0.96747202,110100.0,110090.0,0.26419491]
[1762050053042,0.39290949,110100.0,110090.0,0.26419491]
[1762050055478,0.57456253,110100.0,110090.0,0.26419491]
[1762050056171,0.96747202,110100.0,110090.0,0.26419491]
[1762050058031,0.96747202,110100.0,110090.0,0.08252537]
[1762050058482,0.96747202,110100.0,110090.0,0.05864537]
[1762050058664,1.02059202,110100.0,110090.0,0.04277537]
[1762050059716,1.02059202,110100.0,110090.0,0.0154695]
[1762050060359,0.99599202,110100.0,110090.0,0.0311295]
[1762050067837,0.21017304,110100.0,110090.0,0.0311295]
[1762050068128,0.99599202,110100.0,110090.0,0.0311295]
[1762050077318,1.02059202,110100.0,110090.0,0.0311295]
[1762050080337,0.96747202,110100.0,110090.0,0.0550095]
[1762050081188,0.96747202,110100.0,110090.0,0.23667904]
[1762050081405,0.57455381,110100.0,110090.0,0.0550095]
[1762050082239,0.57455381,110100.0,110090.0,0.23667904]
[1762050085260,0.57455381,110100.0,110090.0,0.0550095]
[1762050089289,0.18165304,110100.0,110090.0,0.23667904]
[1762050089499,0.57455381,110100.0,110090.0,0.23667904]
[1762050089717,0.18165304,110100.0,110090.0,0.23667904]
[1762050089923,0.57455381,110100.0,110090.0,0.28792403]
[1762050090594,0.57455381,110100.0,110090.0,0.23667904]
[1762050091584,0.39290077,110100.0,110090.0,0.23667904]
[1762050091798,0.57455381,110100.0,110090.0,0.0550095]
[1762050092357,0.57455381,110100.0,110090.0,0.23667904]
[1762050097572,0.5745416,110110.0,110090.0,0.23667904]
[1762050097784,0.82764739,110120.0,110100.0,0.33593424]
[1762050097785,0.57452369,110120.0,110100.0,0.33593424]
[1762050098047,0.57452369,110120.0,110110.0,0.20365654]
[1762050098275,0.57452369,110120.0,110110.0,0.22694654]
[1762050098950,0.57452369,110120.0,110110.0,0.04531]
[1762050099380,0.57452369,110120.0,110110.0,0.22894654]
[1762050099803,0.57452369,110120.0,110110.0,0.23094654]
[1762050100012,0.59037369,110120.0,110110.0,0.02602]
[1762050105600,0.60212369,110120.0,110110.0,0.02602]
[1762050105810,0.62553369,110120.0,110110.0,0.02602]
[1762050111209,0.62553369,110120.0,110110.0,0.02646204]
[1762050111417,0.60212369,110120.0,110110.0,0.20809858]
[1762050111614,0.60197838,110120.0,110110.0,0.02646204]
[1762050114160,0.63816066,110120.0,110110.0,0.02646204]
[1762050121112,0.03618228,110120.0,110110.0,0.2637476]
[1762050121320,0.23383483,110130.0,110120.0,0.18162005]
[1762050121321,0.22744918,110130.0,110120.0,0.18162005]
[1762050121535,0.62034995,110130.0,110120.0,0.31369595]
[1762050122469,0.62034995,110130.0,110120.0,0.1320759]
[1762050122672,0.62034995,110130.0,110120.0,0.31369595]
[1762050122873,0.62334995,110130.0,110120.0,0.31369595]
[1762050123668,0.62034995,110130.0,110120.0,0.1320759]
[1762050123848,0.62034995,110130.0,110120.0,0.1340759]
[1762050124262,0.62034995,110130.0,110120.0,0.1112459]
[1762050125932,0.39290077,110130.0,110120.0,0.29286595]
[1762050126136,0.39290077,110130.0,110120.0,0.3511471]
[1762050126841,0.39290077,110130.0,110120.0,0.3513681]
[1762050127883,0.63216154,110140.0,110130.0,0.18160355]
[1762050128063,0.63216154,110140.0,110130.0,0.0246]
[1762050128273,0.64839154,110140.0,110130.0,0.0246]
[1762050129079,0.67432154,110140.0,110130.0,0.02474526]
[1762050129248,0.28142077,110140.0,110130.0,0.00918526]
[1762050129458,0.67432154,110140.0,110130.0,0.02474526]
[1762050129877,0.67432154,110140.0,110130.0,0.00918526]
[1762050130546,0.67432154,110140.0,110130.0,0.03993913]
[1762050131415,0.67432154,110140.0,110130.0,0.00918526]
[1762050136116,0.67432154,110140.0,110130.0,0.02474526]
[1762050137157,0.67432154,110140.0,110130.0,0.00918526]
[1762050143210,0.67432154,110140.0,110130.0,0.00014526]
[1762050143431,1.06682285,110140.0,110130.0,0.00014526]
[1762050144087,1.45952389,110140.0,110130.0,0.00014526]
[1762050147168,1.06682285,110140.0,110130.0,0.00014526]
[1762050148748,0.67412181,110140.0,110130.0,0.00014526]
[1762050148966,1.01571285,110140.0,110130.0,0.23078881]
[1762050149217,0.78840208,110140.0,110130.0,0.26097555]
[1762050149449,0.96998915,110140.0,110130.0,0.26097555]
[1762050150351,0.96698915,110140.0,110130.0,0.26097555]
[1762050150554,0.78540208,110140.0,110130.0,0.26197555]
[1762050151028,0.78540208,110140.0,110130.0,0.23278881]
[1762050153605,0.96698915,110140.0,110130.0,0.23278881]
[1762050154026,0.18158707,110140.0,110130.0,0.23278881]
[1762050154239,0.96698915,110140.0,110130.0,0.23278881]
[1762050160371,0.98316915,110140.0,110130.0,0.02730526]
[1762050163434,1.01046442,110140.0,110130.0,0.02730526]
[1762050170442,1.02210442,110140.0,110130.0,0.02730526]
[1762050173572,1.04577442,110140.0,110130.0,0.01118526]
[1762050174018,1.04577442,110140.0,110130.0,0.02730526]
[1762050179954,1.02210442,110140.0,110130.0,0.02730526]
[1762050196365,1.04710442,110140.0,110130.0,0.02730526]
[1762050200395,1.02210442,110140.0,110130.0,0.20890881]
[1762050200604,1.02210442,110140.0,110130.0,0.02730526]
[1762050205438,0.62938855,110140.0,110130.0,0.02730526]
[1762050210621,0.65262855,110140.0,110130.0,0.02730526]
[1762050212093,1.08149704,110140.0,110130.0,0.00214526]
[1762050212253,1.28567669,110140.0,110130.0,0.00214526]
[1762050212879,1.30527679,110140.0,110130.0,0.00214526]
[1762050213285,1.28567669,110140.0,110130.0,0.00114526]
[1762050213498,0.49612462,110140.0,110130.0,0.01659526]
[1762050213712,0.49612462,110140.0,110130.0,0.04260977]
[1762050213713,0.66657083,110140.0,110130.0,0.04260977]
[1762050213932,0.66657083,110140.0,110130.0,0.04160977]
[1762050214148,0.66857083,110140.0,110130.0,0.01847526]
[1762050214591,0.66557083,110140.0,110130.0,0.01847526]
[1762050214798,0.66557083,110140.0,110130.0,0.01947526]
[1762050214993,0.66557083,110140.0,110130.0,0.02047526]
[1762050215243,0.66557083,110140.0,110130.0,0.20207881]
[1762050215476,0.63775083,110140.0,110130.0,0.04435526]
[1762050216250,0.63775083,110140.0,110130.0,0.22595881]
[1762050217964,0.63775083,110140.0,110130.0,0.04435526]
[1762050218164,0.65366083,110140.0,110130.0,0.02047526]
[1762050222621,0.65366083,110140.0,110130.0,0.20207881]
[1762050223944,0.65366083,110140.0,110130.0,0.02047526]
[1762050229186,0.65366083,110140.0,110130.0,0.20207881]
[1762050230464,0.65366083,110140.0,110130.0,0.02047526]
[1762050231526,0.66511083,110140.0,110130.0,0.02047526]
[1762050233062,0.68835083,110140.0,110130.0,0.02047526]
[1762050235719,0.68835083,110140.0,110130.0,0.01847526]
[1762050235927,0.68935083,110140.0,110130.0,0.01847526]
[1762050236126,0.69135083,110140.0,110130.0,0.01847526]
[1762050238281,0.69035083,110140.0,110130.0,0.01847526]
[1762050238665,0.69135083,110140.0,110130.0,0.00302526]
[1762050238821,0.68935083,110140.0,110130.0,0.00302526]
[1762050239006,0.69135083,110140.0,110130.0,0.00302526]
[1762050241086,0.69135083,110140.0,110130.0,0.01827526]
[1762050243426,0.66811083,110140.0,110130.0,0.01827526]
[1762050243864,0.64075083,110140.0,110130.0,0.04120526]
[1762050244459,0.63975083,110140.0,110130.0,0.04120526]
[1762050244655,0.63775083,110140.0,110130.0,0.04220526]
[1762050245065,0.63775083,110140.0,110130.0,0.04320526]
[1762050245398,0.63775083,110140.0,110130.0,0.02027526]
[1762050246328,0.63775083,110140.0,110130.0,0.04320526]
[1762050255310,0.60156855,110140.0,110130.0,0.22480881]
[1762050255548,0.60156855,110140.0,110130.0,0.04320526]
[1762050256413,0.60156855,110140.0,110130.0,0.24296916]
[1762050256675,0.41998148,110140.0,110130.0,0.22480881]
[1762050256927,0.60156855,110140.0,110130.0,0.22480881]
[1762050257163,0.60156855,110140.0,110130.0,0.27545838]
[1762050257605,0.41998148,110140.0,110130.0,0.27545838]
[1762050257826,0.60156855,110140.0,110130.0,0.27545838]
[1762050258932,0.60156855,110140.0,110130.0,0.09385483]
[1762050260389,0.60156855,110140.0,110130.0,0.04320526]
[1762050261984,0.60156855,110140.0,110130.0,0.06136561]
[1762050262797,0.60156855,110140.0,110130.0,0.24296916]
[1762050262944,0.60156855,110140.0,110130.0,0.04320526]
[1762050263147,0.60156855,110140.0,110130.0,0.06136561]
[1762050263555,0.60156855,110140.0,110130.0,0.04320526]
[1762050264161,0.60156855,110140.0,110130.0,0.22480881]
[1762050265343,0.99412762,110140.0,110130.0,0.22480881]
[1762050265916,0.99412762,110140.0,110130.0,0.04320526]
[1762050269121,0.99412762,110140.0,110130.0,0.22480881]
[1762050271242,0.81254055,110140.0,110130.0,0.22480881]
[1762050271867,0.99412762,110140.0,110130.0,0.22480881]
[1762050280180,0.99412762,110140.0,110130.0,0.04320526]
[1762050282614,0.99412762,110140.0,110130.0,0.22480881]
[1762050282816,0.99412762,110140.0,110130.0,0.04320526]
[1762050284036,0.99412762,110140.0,110130.0,0.22480881]
[1762050285390,0.99412762,110140.0,110130.0,0.04320526]
[1762050286769,0.99412762,110140.0,110130.0,0.22480881]
[1762050287159,0.99412762,110140.0,110130.0,0.04320526]
[1762050288238,0.99412762,110140.0,110130.0,0.22480881]
[1762050288700,0.99412762,110140.0,110130.0,0.04320526]
[1762050290581,0.99412762,110140.0,110130.0,0.02027526]
[1762050290780,1.01052762,110140.0,110130.0,0.02027526]
[1762050301667,0.81254055,110140.0,110130.0,0.22575881]
[1762050301906,0.81254055,110140.0,110130.0,0.27650335]
[1762050302109,0.99412762,110140.0,110130.0,0.27650335]
[1762050302314,0.81254055,110140.0,110130.0,0.27650335]
[1762050302815,0.41991791,110140.0,110130.0,0.27650335]
[1762050302984,0.02729527,110140.0,110130.0,0.22575881]
[1762050303188,0.58434788,110160.0,110140.0,0.18157635]
[1762050303385,0.58434788,110160.0,110150.0,0.1372659]
[1762050303615,0.40295268,110160.0,110150.0,0.31883648]
[1762050303815,0.4209569,110160.0,110150.0,0.31883648]
[1762050304017,0.4209569,110160.0,110150.0,0.36947576]
[1762050304390,0.4239569,110160.0,110150.0,0.36947576]
[1762050304593,0.4209569,110160.0,110150.0,0.36947576]
[1762050304817,0.602511,110160.0,110150.0,0.36947576]
[1762050305240,0.99513364,110160.0,110150.0,0.36947576]
[1762050305465,1.00424196,110160.0,110150.0,0.36947576]
[1762050305673,1.00424196,110160.0,110150.0,0.37047576]
[1762050305870,1.00424196,110160.0,110150.0,0.18890518]
[1762050306292,1.00424196,110160.0,110150.0,0.1382659]
[1762050307433,1.00424196,110160.0,110150.0,0.31983648]
[1762050307902,1.00424196,110160.0,110150.0,0.1382659]
[1762050314078,1.00424196,110160.0,110150.0,0.31983648]
[1762050316344,0.81357954,110160.0,110150.0,0.31983648]
[1762050316549,0.99513364,110160.0,110150.0,0.31983648]
[1762050316759,0.81357954,110160.0,110150.0,0.31983648]
[1762050317573,0.99513364,110160.0,110150.0,0.31983648]
[1762050317972,0.99513364,110160.0,110150.0,0.1382659]
[1762050319169,0.99513364,110160.0,110150.0,0.31983648]
[1762050319369,0.99513364,110160.0,110150.0,0.1382659]
[1762050319574,0.99513364,110160.0,110150.0,0.31983648]
[1762050319816,0.99513364,110160.0,110150.0,0.1382659]
[1762050323554,0.99513364,110160.0,110150.0,0.31983648]
[1762050324338,0.81357954,110160.0,110150.0,0.31983648]
[1762050324547,0.99513364,110160.0,110150.0,0.31983648]
[1762050325119,0.02833426,110160.0,110150.0,0.31983648]
[1762050325355,0.4208002,110160.0,110150.0,0.31983648]
[1762050325608,0.6023543,110160.0,110150.0,0.31983648]
[1762050329008,0.6023543,110160.0,110150.0,0.1382659]
[1762050330615,0.6023543,110160.0,110150.0,0.31983648]
[1762050331722,0.6023543,110160.0,110150.0,0.3190982]
[1762050331982,0.6023543,110160.0,110150.0,0.13752762]
[1762050332216,0.6023543,110160.0,110150.0,0.3190982]
[1762050334189,0.6023543,110160.0,110150.0,0.13752762]
[1762050334429,0.6023543,110160.0,110150.0,0.3190982]
[1762050334584,0.6023543,110160.0,110150.0,0.13752762]
[1762050335369,0.6023543,110160.0,110150.0,0.3190982]
[1762050336624,0.4208002,110160.0,110150.0,0.3190982]
[1762050337988,0.6023543,110160.0,110150.0,0.3190982]
[1762050339560,0.4208002,110160.0,110150.0,0.3190982]
[1762050342529,0.6023543,110160.0,110150.0,0.3190982]
[1762050343715,0.4208002,110160.0,110150.0,0.3190982]
[1762050344539,0.6023543,110160.0,110150.0,0.3190982]
[1762050347550,0.4208002,110160.0,110150.0,0.3190982]
[1762050349698,0.02833426,110160.0,110150.0,0.3190982]
[1762050349912,0.4208002,110160.0,110150.0,0.3190982]
[1762050352540,0.02833426,110160.0,110150.0,0.37467425]
[1762050354657,0.4208002,110160.0,110150.0,0.3190982]
[1762050357094,0.02833426,110160.0,110150.0,0.3190982]
[1762050358196,0.4208002,110160.0,110150.0,0.3190982]
[1762050358584,0.6023543,110160.0,110150.0,0.13752762]
[1762050359196,0.6023543,110160.0,110150.0,0.3190982]
[1762050361564,0.6023543,110160.0,110150.0,0.13752762]
[1762050361738,0.6023543,110160.0,110150.0,0.3190982]
[1762050366730,0.4208002,110160.0,110150.0,0.3190982]
[1762050369942,0.6023543,110160.0,110150.0,0.3190982]
[1762050374169,0.6023543,110160.0,110150.0,0.2952182]
[1762050374612,0.6023543,110160.0,110150.0,0.3183582]
[1762050377194,0.4208002,110160.0,110150.0,0.3183582]
[1762050385370,0.42076034,110160.0,110150.0,0.3183582]
[1762050387514,0.60231444,110160.0,110150.0,0.3183582]
[1762050388188,0.42076034,110160.0,110150.0,0.3183582]
[1762050389227,0.60231444,110160.0,110150.0,0.3183582]
[1762050390135,0.42076034,110160.0,110150.0,0.3183582]
[1762050391840,0.60231444,110160.0,110150.0,0.3183582]
[1762050393261,0.02833426,110160.0,110150.0,0.3183582]
[1762050393451,0.42076034,110160.0,110150.0,0.3183582]
[1762050394307,0.60231444,110160.0,110150.0,0.3183582]
[1762050395392,0.42076034,110160.0,110150.0,0.3183582]
[1762050396648,0.60231444,110160.0,110150.0,0.3183582]
[1762050397627,0.42076034,110160.0,110150.0,0.3183582]
[1762050397839,0.60231444,110160.0,110150.0,0.3183582]
[1762050399819,0.42076034,110160.0,110150.0,0.3183582]
[1762050400047,0.60231444,110160.0,110150.0,0.3183582]
[1762050402078,0.42076034,110160.0,110150.0,0.3183582]
[1762050408736,0.60231444,110160.0,110150.0,0.3183582]
[1762050417719,0.42076034,110160.0,110150.0,0.3183582]
[1762050430230,0.02833426,110160.0,110150.0,0.3183582]
[1762050430434,0.42076034,110160.0,110150.0,0.3183582]
[1762050432399,0.42076034,110160.0,110150.0,0.36894965]
[1762050432813,0.42076034,110160.0,110150.0,0.3183582]
[1762050443572,0.02833426,110160.0,110150.0,0.3183582]
[1762050443783,0.42076034,110160.0,110150.0,0.3183582]
[1762050447557,0.02833426,110160.0,110150.0,0.3183582]
[1762050486695,0.20988836,110160.0,110150.0,0.3183582]
[1762050489112,0.02833426,110160.0,110150.0,0.3183582]
[1762050489457,0.20988836,110160.0,110150.0,0.3183582]
[1762050490250,0.02833426,110160.0,110150.0,0.3183582]
[1762050490458,0.20988836,110160.0,110150.0,0.3183582]
[1762050491756,0.42074081,110160.0,110150.0,0.3183582]
[1762050493120,0.42074081,110160.0,110150.0,0.2952182]
[1762050493451,0.42074081,110160.0,110150.0,0.3178982]
[1762050493847,0.60229491,110160.0,110150.0,0.3178982]
[1762050495378,0.42074081,110160.0,110150.0,0.3178982]
[1762050495625,0.42060349,110160.0,110150.0,0.3178982]
[1762050495832,0.60215759,110160.0,110150.0,0.3178982]
[1762050496467,0.42060349,110160.0,110150.0,0.3178982]
[1762050496638,0.43607349,110160.0,110150.0,0.2952182]
[1762050496859,0.60215759,110160.0,110150.0,0.2952182]
[1762050497058,0.60215759,110160.0,110150.0,0.3178982]
[1762050497261,0.42060349,110160.0,110150.0,0.3178982]
[1762050499748,0.60215759,110160.0,110150.0,0.3178982]
[1762050499969,0.42060349,110160.0,110150.0,0.3178982]
[1762050501597,0.60215759,110160.0,110150.0,0.2952182]
[1762050501806,0.42060349,110160.0,110150.0,0.2952182]
[1762050502014,0.42060349,110160.0,110150.0,0.3183582]
[1762050503117,0.02819694,110160.0,110150.0,0.3183582]
[1762050503318,0.42060349,110160.0,110150.0,0.3183582]
[1762050505940,0.60215759,110160.0,110150.0,0.3183582]
[1762050506802,0.42060349,110160.0,110150.0,0.3183582]
[1762050507477,0.42062376,110160.0,110150.0,0.3183582]
[1762050507736,0.60217786,110160.0,110150.0,0.2952182]
[1762050507950,0.42062376,110160.0,110150.0,0.2952182]
[1762050508164,0.60217786,110160.0,110150.0,0.2952182]
[1762050509790,0.42062376,110160.0,110150.0,0.2952182]
[1762050510266,0.60217786,110160.0,110150.0,0.2952182]
[1762050510504,0.42062376,110160.0,110150.0,0.2952182]
[1762050510735,0.42062376,110160.0,110150.0,0.33112298]
[1762050510948,0.42062376,110160.0,110150.0,0.35426298]
[1762050515205,0.60217786,110160.0,110150.0,0.35426298]
[1762050515552,0.42062376,110160.0,110150.0,0.35426298]
[1762050516196,0.60217786,110160.0,110150.0,0.35426298]
[1762050516392,0.42062376,110160.0,110150.0,0.35426298]
[1762050516914,0.42062376,110160.0,110150.0,0.33112298]
[1762050517117,0.60217786,110160.0,110150.0,0.33112298]
[1762050517324,0.42062376,110160.0,110150.0,0.33112298]
[1762050517525,0.42062376,110160.0,110150.0,0.2952182]
[1762050519164,0.60217786,110160.0,110150.0,0.2952182]
[1762050519604,0.42062376,110160.0,110150.0,0.2952182]
[1762050520246,0.60217786,110160.0,110150.0,0.3183582]
[1762050520485,0.42062376,110160.0,110150.0,0.3183582]
[1762050520960,0.60217786,110160.0,110150.0,0.36894965]
[1762050521438,0.60217786,110160.0,110150.0,0.3183582]
[1762050522031,0.60217786,110160.0,110150.0,0.2952182]
[1762050522625,0.60217786,110160.0,110150.0,0.3183582]
[1762050523605,0.42062376,110160.0,110150.0,0.3183582]
[1762050523812,0.60217786,110160.0,110150.0,0.3183582]
[1762050524648,0.42062376,110160.0,110150.0,0.3183582]
[1762050525506,0.42062376,110160.0,110150.0,0.3716784]
[1762050526602,0.42062376,110160.0,110150.0,0.3485384]
[1762050527125,0.42062376,110160.0,110150.0,0.3716784]
[1762050535286,0.60217786,110160.0,110150.0,0.3716784]
[1762050535704,0.42062376,110160.0,110150.0,0.3716784]
[1762050535914,0.42062376,110160.0,110150.0,0.3485384]
[1762050536324,0.60217786,110160.0,110150.0,0.3485384]
[1762050536740,0.42062376,110160.0,110150.0,0.3485384]
[1762050536947,0.42062376,110160.0,110150.0,0.3716784]
[1762050542187,0.60217786,110160.0,110150.0,0.3716784]
[1762050542624,0.60217786,110160.0,110150.0,0.3485384]
[1762050542850,0.60217786,110160.0,110150.0,0.2952182]
[1762050543085,0.42062376,110160.0,110150.0,0.2952182]
[1762050543549,0.43696376,110160.0,110150.0,0.2952182]
[1762050544216,0.42062376,110160.0,110150.0,0.2952182]
[1762050544443,0.42062376,110160.0,110150.0,0.34349566]
[1762050545109,0.42062376,110160.0,110150.0,0.36663566]
[1762050546173,0.02819694,110160.0,110150.0,0.36663566]
[1762050546391,0.00090729,110160.0,110150.0,0.75906248]
[1762050546598,0.00090729,110160.0,110150.0,1.12734697]
[1762050546800,0.00090729,110160.0,110150.0,1.19268257]
[1762050548177,0.00090729,110160.0,110150.0,1.19568257]
[1762050548605,0.00090729,110160.0,110150.0,1.19468257]
[1762050548853,0.00090729,110160.0,110150.0,1.20068257]
[1762050549212,0.00090729,110160.0,110150.0,1.13534697]
[1762050549846,0.00090729,110160.0,110150.0,1.20068257]
[1762050550250,0.00090729,110160.0,110150.0,1.13534697]
[1762050551791,0.00090729,110160.0,110150.0,1.28414697]
[1762050554163,0.00090729,110160.0,110150.0,1.33311527]
[1762050557616,0.00090729,110160.0,110150.0,1.18431527]
[1762050563555,0.00090729,110160.0,110150.0,1.33311527]
[1762050568184,0.00090729,110160.0,110150.0,1.28414697]
[1762050569519,0.00090729,110160.0,110150.0,1.28393471]
[1762050571254,0.00090729,110160.0,110150.0,1.34927031]
[1762050595903,0.00090729,110160.0,110150.0,0.95705575]
[1762050596113,0.00090729,110160.0,110150.0,0.90877829]
[1762050596343,0.00090729,110160.0,110150.0,0.8804938]
[1762050598663,0.00090729,110160.0,110150.0,0.7316938]
[1762050602309,0.00090729,110160.0,110150.0,0.6663582]
[1762050616183,0.00090729,110160.0,110150.0,0.6673582]
[1762050616819,0.00090729,110160.0,110150.0,0.74491162]
[1762050618298,0.00090729,110160.0,110150.0,0.6673582]
[1762050621293,0.00090729,110160.0,110150.0,0.7326938]
[1762050621751,0.00090729,110160.0,110150.0,0.6673582]
[1762050622372,0.00090729,110160.0,110150.0,0.7326938]
[1762050626756,0.00090729,110160.0,110150.0,1.12390836]
[1762050626962,0.00090729,110160.0,110150.0,1.21472737]
[1762050628003,0.00090729,110160.0,110150.0,1.36352737]
[1762050628659,0.00090729,110160.0,110150.0,1.35452737]
[1762050629142,0.00090729,110160.0,110150.0,1.36552737]
[1762050629466,0.00090729,110160.0,110150.0,1.36552728]
[1762050637969,0.00090729,110160.0,110150.0,1.37552727]
[1762050646122,0.00090729,110160.0,110150.0,0.9833128]
[1762050646366,0.00090729,110160.0,110150.0,1.37552727]
[1762050651633,0.00081651,110160.0,110150.0,1.37552727]
[1762050657327,0.00081651,110160.0,110150.0,1.31019167]
[1762050661945,0.00081651,110160.0,110150.0,1.22037266]
[1762050662161,0.00081651,110160.0,110150.0,1.28484287]
[1762050663509,0.00081651,110160.0,110150.0,1.28584287]
[1762050675019,0.00081651,110160.0,110150.0,1.28484287]
[1762050675230,0.00081651,110160.0,110150.0,1.28584287]
[1762050675454,0.00081651,110160.0,110150.0,1.37566188]
[1762050691479,0.00081651,110160.0,110150.0,1.37570845]
[1762050705244,0.02809718,110160.0,110150.0,1.37570845]
[1762050720788,0.02809718,110160.0,110150.0,1.31023824]
[1762050729317,0.02809718,110160.0,110150.0,1.37568413]
[1762050729528,0.00081651,110160.0,110150.0,1.16143824]
[1762050729744,0.00081651,110160.0,110150.0,1.27043478]
[1762050731455,1e-08,110160.0,110150.0,1.27043478]
[1762050733581,1e-08,110160.0,110150.0,1.41923478]
[1762050743139,1e-08,110160.0,110150.0,1.02697374]
[1762050743316,1e-08,110160.0,110150.0,1.41923478]
[1762050745711,0.01127,110200.0,110180.0,0.18150684]
[1762050745877,0.46391332,110210.0,110200.0,0.1814882]
[1762050746081,0.08785228,110210.0,110200.0,0.1814882]
[1762050746494,0.11512926,110210.0,110200.0,0.1814882]
[1762050746774,0.11512926,110210.0,110200.0,0.22761008]
[1762050746915,0.1151775,110210.0,110200.0,0.22761008]
[1762050747117,0.02732522,110210.0,110200.0,0.27557008]
[1762050747983,0.03332522,110210.0,110200.0,0.2294482]
[1762050748404,0.60929009,110230.0,110220.0,0.18145527]
[1762050748405,0.0002,110230.0,110220.0,0.18145527]
[1762050748615,0.00024821,110230.0,110220.0,0.98995182]
[1762050748830,0.00024821,110230.0,110220.0,0.9688063]
[1762050749037,0.00024821,110230.0,110220.0,1.12399479]
[1762050749249,0.00024821,110230.0,110220.0,1.15125642]
[1762050749458,0.00024821,110230.0,110220.0,1.13470406]
[1762050749667,0.00024821,110230.0,110220.0,1.13370406]
[1762050749912,1e-08,110230.0,110220.0,1.13470406]
[1762050750326,1e-08,110230.0,110220.0,1.08588694]
[1762050750785,1e-08,110230.0,110220.0,1.08688694]
[1762050750999,1e-08,110230.0,110220.0,1.09288694]
[1762050751327,1e-08,110230.0,110220.0,1.53384491]
[1762050751772,1e-08,110230.0,110220.0,1.14158387]
[1762050751980,1e-08,110230.0,110220.0,0.74932283]
[1762050752899,0.0002,110250.0,110240.0,0.53142234]
[1762050753119,0.00068216,110250.0,110240.0,1.00736461]
[1762050753342,0.00068216,110250.0,110240.0,0.63824357]
[1762050753559,0.00068216,110250.0,110240.0,1.02987573]
[1762050754056,0.00068216,110250.0,110240.0,1.03087573]
[1762050754057,0.0011234,110250.0,110240.0,1.03087573]
[1762050754280,0.0011234,110250.0,110240.0,1.03187573]
[1762050754506,0.0011234,110250.0,110240.0,1.03087573]
[1762050754723,0.0011234,110250.0,110240.0,0.63924357]
[1762050754941,0.0011234,110250.0,110240.0,1.03887573]
[1762050756210,0.0011234,110250.0,110240.0,1.43050789]
[1762050757245,0.0011234,110250.0,110240.0,1.44578203]
[1762050758977,0.0011234,110250.0,110240.0,0.66251771]
[1762050759188,0.0011234,110250.0,110240.0,1.44578203]
[1762050761226,0.0011234,110250.0,110240.0,1.05414987]
[1762050762482,0.0011234,110250.0,110240.0,0.66251771]
[1762050762691,0.0011234,110250.0,110240.0,1.44578203]
[1762050762847,0.0011234,110250.0,110240.0,1.59458203]
[1762050765224,0.0011234,110250.0,110240.0,1.57930789]
[1762050770614,0.0011234,110250.0,110240.0,0.79604357]
[1762050770817,0.0011234,110250.0,110240.0,1.11882451]
[1762050771016,0.0011234,110250.0,110240.0,1.11982451]
[1762050771648,0.0011234,110250.0,110240.0,0.72819235]
[1762050771799,0.0011234,110250.0,110240.0,0.68752235]
[1762050771800,0.44369556,110250.0,110240.0,0.68752235]
[1762050772006,0.41963556,110250.0,110240.0,0.70405235]
[1762050772222,0.44369556,110250.0,110240.0,0.70405235]
[1762050772938,0.0011234,110250.0,110240.0,0.71919235]
[1762050773139,0.44369556,110250.0,110240.0,0.19172235]
[1762050773354,0.44469556,110250.0,110240.0,0.19172235]
[1762050773785,0.44469556,110250.0,110240.0,0.20825235]
[1762050774677,0.44469556,110250.0,110240.0,0.19172235]
[1762050774904,0.0290034,110250.0,110240.0,0.20825235]
[1762050775122,0.44469556,110250.0,110240.0,0.20825235]
[1762050775345,0.44469556,110250.0,110240.0,0.19172235]
[1762050776232,0.62610145,110250.0,110240.0,0.19172235]
[1762050776451,0.0530634,110250.0,110240.0,0.18342235]
[1762050776663,0.44469556,110250.0,110240.0,0.18342235]
[1762050777357,0.62610145,110250.0,110240.0,0.18342235]
[1762050777573,0.62610145,110250.0,110240.0,0.002]
[1762050777792,0.62610145,110250.0,110240.0,0.18342235]
[1762050778010,0.44469556,110250.0,110240.0,0.18342235]
[1762050778236,0.44867655,110250.0,110240.0,0.18342235]
[1762050778663,0.63008244,110250.0,110240.0,0.18342235]
[1762050779148,0.44867655,110250.0,110240.0,0.18342235]
[1762050780529,0.00610439,110250.0,110240.0,0.23130235]
[1762050780772,0.0021234,110250.0,110240.0,0.67510787]
[1762050781212,0.0021234,110250.0,110240.0,1.11438653]
[1762050781418,0.0021234,110250.0,110240.0,0.72375437]
[1762050783109,0.0021234,110250.0,110240.0,1.06375437]
[1762050783339,0.0021234,110250.0,110240.0,1.21255437]
[1762050787433,0.0021234,110250.0,110240.0,1.60318653]
[1762050787656,0.0021234,110250.0,110240.0,1.60418653]